bitfinex-derivatives/quotes_BTCF0:USTF0_20250814
["timestamp","ask_amount","ask_price","bid_price","bid_amount"]
[1755183932734,0.94419769,118790.0,118780.0,0.601762]
[1755183934536,0.47909769,118790.0,118780.0,0.602562]
[1755183934737,0.39496449,118790.0,118780.0,0.602562]
[1755183934930,0.03416449,118790.0,118780.0,1.66033812]
[1755183935328,0.11829769,118790.0,118780.0,0.963362]
[1755183935527,0.03416449,118790.0,118780.0,0.963362]
[1755183935829,0.3608,118800.0,118780.0,2.08112262]
[1755183936035,0.4449261,118800.0,118790.0,1.79048612]
[1755183936335,0.4449261,118800.0,118790.0,1.09271]
[1755183936640,0.7991061,118800.0,118790.0,1.09271]
[1755183937334,0.8001061,118800.0,118790.0,1.09271]
[1755183937731,0.80895578,118800.0,118790.0,1.09271]
[1755183938637,0.001,118800.0,118790.0,1.79048612]
[1755183938837,0.0841188,118810.0,118800.0,0.45897]
[1755183939138,0.14452843,118810.0,118800.0,1.15594612]
[1755183939337,0.14452843,118810.0,118800.0,0.45897]
[1755183939542,0.1989503,118810.0,118800.0,0.45897]
[1755183940041,0.1999503,118810.0,118800.0,0.45897]
[1755183940534,0.6193603,118810.0,118800.0,0.553922]
[1755183940752,0.91975067,118810.0,118800.0,0.553922]
[1755183941127,0.15515833,118810.0,118800.0,0.592572]
[1755183941739,0.002,118810.0,118800.0,1.37447402]
[1755183941941,0.06615126,118820.0,118800.0,1.90352302]
[1755183942144,0.14431936,118820.0,118810.0,1.78924612]
[1755183942441,0.14431936,118820.0,118810.0,2.15004612]
[1755183942940,0.25730533,118820.0,118810.0,1.09227]
[1755183943236,0.25930533,118820.0,118810.0,1.09227]
[1755183943436,0.49025533,118820.0,118810.0,1.09227]
[1755183943644,0.25930533,118820.0,118810.0,1.09227]
[1755183944744,0.62010533,118820.0,118810.0,1.09227]
[1755183944941,1.03951533,118820.0,118810.0,1.23976]
[1755183945140,0.98130767,118820.0,118810.0,1.27641]
[1755183945339,1.04155307,118820.0,118810.0,1.410012]
[1755183945848,1.04055307,118820.0,118810.0,1.410012]
[1755183946044,0.98030767,118820.0,118810.0,1.373362]
[1755183946344,1.0555539,118820.0,118810.0,1.32789231]
[1755183946545,1.0555539,118820.0,118810.0,0.50845231]
[1755183946939,1.0555539,118820.0,118810.0,1.32693231]
[1755183947938,1.00534291,118820.0,118810.0,1.32693231]
[1755183948139,0.084133,118790.0,118780.0,0.38752]
[1755183948338,0.66134824,118790.0,118780.0,1.24069]
[1755183948547,0.88444842,118790.0,118780.0,1.24069]
[1755183948743,0.72164842,118790.0,118780.0,1.24069]
[1755183949244,0.88444842,118790.0,118780.0,1.24069]
[1755183949550,0.88444842,118790.0,118780.0,1.24269]
[1755183950342,0.88444842,118790.0,118780.0,1.24169]
[1755183950939,0.88444842,118790.0,118780.0,1.20504]
[1755183950940,0.99526842,118790.0,118780.0,1.20504]
[1755183951546,0.99526842,118790.0,118780.0,1.259092]
[1755183951743,0.99526842,118790.0,118780.0,1.224122]
[1755183951938,1.69224454,118790.0,118780.0,1.223122]
[1755183952138,0.93496824,118790.0,118780.0,0.406242]
[1755183952346,1.70799059,118790.0,118780.0,0.133602]
[1755183952645,1.73810015,118790.0,118780.0,0.8595966]
[1755183953046,1.77810015,118790.0,118780.0,0.8595966]
[1755183953552,1.94646816,118790.0,118780.0,0.8595966]
[1755183953752,1.20869204,118790.0,118780.0,0.8595966]
[1755183953946,2.00566816,118790.0,118780.0,0.8595966]
[1755183954145,1.80031237,118790.0,118780.0,0.8595966]
[1755183954650,1.87575297,118790.0,118780.0,0.8595966]
[1755183955253,1.97575297,118790.0,118780.0,0.8595966]
[1755183955447,1.97575297,118790.0,118780.0,0.8595566]
[1755183956046,1.87575297,118790.0,118780.0,0.8595566]
[1755183956354,1.98575297,118790.0,118780.0,0.8595566]
[1755183956944,1.98575297,118790.0,118780.0,0.8242121]
[1755183956945,1.98655297,118790.0,118780.0,0.8242121]
[1755183957152,0.2470706,118750.0,118740.0,0.38498]
[1755183957344,0.81699064,118750.0,118740.0,1.23807]
[1755183957547,0.76927064,118750.0,118740.0,2.73807]
[1755183958852,0.76927064,118750.0,118740.0,2.73907]
[1755183959451,0.55417004,118750.0,118740.0,2.73907]
[1755183959652,0.14451369,118760.0,118750.0,0.25799]
[1755183959850,0.06899174,118760.0,118750.0,0.95496612]
[1755183960156,1.04416799,118770.0,118760.0,0.25799]
[1755183960351,1.04416799,118770.0,118760.0,1.07355]
[1755183961658,1.05300044,118770.0,118760.0,1.07355]
[1755183961854,1.74997656,118770.0,118760.0,1.07355]
[1755183962055,1.68961987,118770.0,118760.0,1.07355]
[1755183962360,1.18214375,118770.0,118760.0,1.07355]
[1755183963163,1.18314375,118770.0,118760.0,1.07355]
[1755183963457,1.18414375,118770.0,118760.0,1.07355]
[1755183964857,1.29445209,118770.0,118760.0,1.07355]
[1755183965251,0.1530813,118750.0,118740.0,1.5]
[1755183965448,0.9208613,118750.0,118740.0,2.31672]
[1755183965653,0.9208613,118750.0,118740.0,2.3166]
[1755183965853,0.9208613,118750.0,118740.0,2.4653]
[1755183965854,0.98125779,118750.0,118740.0,2.4653]
[1755183966562,0.98125779,118750.0,118740.0,2.4673]
[1755183967359,0.63086779,118750.0,118740.0,2.4673]
[1755183967564,0.63086779,118750.0,118740.0,2.600902]
[1755183967862,0.55212779,118750.0,118740.0,2.600902]
[1755183968861,0.4917313,118750.0,118740.0,2.600902]
[1755183969060,0.0841613,118750.0,118740.0,3.29787812]
[1755183969260,0.78697549,118760.0,118750.0,0.10929]
[1755183969456,0.42617549,118760.0,118750.0,0.25799]
[1755183969656,0.365779,118760.0,118750.0,0.25799]
[1755183969860,0.726579,118760.0,118750.0,0.25799]
[1755183970162,1.155709,118760.0,118750.0,0.25799]
[1755183970358,0.1974598,118760.0,118750.0,0.391592]
[1755183970655,0.1506878,118760.0,118750.0,1.08856812]
[1755183970855,0.0841542,118760.0,118750.0,1.08856812]
[1755183971660,0.10880508,118760.0,118750.0,1.08856812]
[1755183971874,0.10880508,118760.0,118750.0,1.08936812]
[1755183972258,0.10880508,118760.0,118750.0,1.08856812]
[1755183972668,0.10880508,118760.0,118750.0,0.391592]
[1755183972962,0.17655822,118760.0,118750.0,1.08856812]
[1755183973158,0.5758583,118780.0,118750.0,1.72235952]
[1755183973360,0.5758583,118780.0,118760.0,2.12643382]
[1755183973557,0.14453649,118780.0,118770.0,0.78112322]
[1755183973756,0.14453649,118780.0,118770.0,0.69697612]
[1755183973953,0.22868289,118780.0,118760.0,1.4286577]
[1755183974165,0.22868289,118780.0,118770.0,0.69697612]
[1755183974361,0.64496416,118790.0,118770.0,0.78192322]
[1755183974562,0.15325416,118790.0,118780.0,1.51193612]
[1755183974768,0.15325416,118790.0,118780.0,0.81496]
[1755183974769,0.0841362,118790.0,118780.0,0.81496]
[1755183974967,0.14453269,118790.0,118780.0,1.51193612]
[1755183975262,0.1309062,118790.0,118780.0,0.948562]
[1755183975458,0.19130269,118790.0,118780.0,0.948562]
[1755183976062,0.4492762,118790.0,118780.0,0.948562]
[1755183976267,0.98503269,118790.0,118780.0,0.953722]
[1755183976463,1.68200881,118790.0,118780.0,0.133602]
[1755183976654,1.5012294,118790.0,118780.0,0.133602]
[1755183976859,1.44083291,118790.0,118780.0,0.953682]
[1755183977054,1.44083291,118790.0,118780.0,0.83997174]
[1755183977260,0.1998442,118760.0,118750.0,0.02000663]
[1755183977559,0.3016342,118760.0,118750.0,0.84008663]
[1755183977759,0.1309242,118760.0,118750.0,0.84008663]
[1755183978356,0.7313542,118760.0,118750.0,0.84008663]
[1755183979055,0.4917242,118760.0,118750.0,0.02000663]
[1755183979263,0.7313542,118760.0,118750.0,0.84388663]
[1755183980160,0.79948439,118760.0,118750.0,0.84388663]
[1755183980368,0.79948439,118760.0,118750.0,0.97748863]
[1755183982566,0.79948439,118760.0,118750.0,1.00930863]
[1755183982964,0.55985439,118760.0,118750.0,1.00930863]
[1755183983169,0.55985439,118760.0,118750.0,1.79044605]
[1755183983360,0.55985439,118760.0,118750.0,1.70628475]
[1755183983561,0.42893019,118760.0,118750.0,1.09346993]
[1755183983755,0.42893019,118760.0,118750.0,1.79044605]
[1755183984066,0.06813019,118760.0,118750.0,2.32046205]
[1755183984370,0.31291129,118780.0,118760.0,0.3041694]
[1755183984556,0.3836693,118780.0,118770.0,0.8238]
[1755183984756,0.2153751,118780.0,118770.0,0.9596571]
[1755183984961,0.2153751,118780.0,118770.0,0.87551]
[1755183985267,0.59985062,118780.0,118770.0,1.009112]
[1755183985467,0.76344062,118780.0,118770.0,1.009112]
[1755183985670,1.02920062,118780.0,118770.0,1.009112]
[1755183985868,1.03120062,118780.0,118770.0,1.009112]
[1755183986465,1.03020062,118780.0,118770.0,1.009112]
[1755183986664,1.03120062,118780.0,118770.0,1.009112]
[1755183987663,0.60285062,118780.0,118770.0,1.009112]
[1755183988275,0.76644062,118780.0,118770.0,1.009112]
[1755183988665,1.03120062,118780.0,118770.0,1.009112]
[1755183990671,1.03120062,118780.0,118770.0,0.977292]
[1755183991073,1.03120062,118780.0,118770.0,0.956442]
[1755183991277,1.72897674,118780.0,118770.0,0.956442]
[1755183991774,1.03200062,118780.0,118770.0,0.956442]
[1755183992776,1.03120062,118780.0,118770.0,0.956442]
[1755183993276,1.03120062,118780.0,118770.0,1.008152]
[1755183993679,0.51870552,118780.0,118770.0,1.70512812]
[1755183994274,0.51870552,118780.0,118770.0,1.008152]
[1755183994275,0.68229552,118780.0,118770.0,1.008152]
[1755183994475,0.94705552,118780.0,118770.0,1.008152]
[1755183994784,0.94705552,118780.0,118770.0,0.976332]
[1755183995775,1.64403164,118780.0,118770.0,0.955242]
[1755183996481,0.94705552,118780.0,118770.0,0.955242]
[1755183996786,1.64403164,118780.0,118770.0,0.955242]
[1755183997286,0.94705552,118780.0,118770.0,0.955242]
[1755183997487,0.94705552,118780.0,118770.0,0.975132]
[1755183997879,0.43456552,118780.0,118770.0,1.70472812]
[1755183998084,0.02667552,118780.0,118770.0,1.70392812]
[1755183998387,0.06047909,118800.0,118790.0,0.0849329]
[1755183998583,0.22872219,118810.0,118790.0,2.13273202]
[1755183998774,0.19168789,118810.0,118800.0,0.3608]
[1755183998979,0.2994543,118810.0,118800.0,0.69697612]
[1755183999376,0.2994543,118810.0,118790.0,1.31017202]
[1755183999584,0.2994543,118810.0,118800.0,0.82284]
[1755184000090,0.3014543,118810.0,118800.0,1.51981612]
[1755184000294,0.3014543,118810.0,118800.0,0.956442]
[1755184001192,0.5356543,118810.0,118800.0,0.956442]
[1755184001594,0.8974543,118810.0,118800.0,0.955562]
[1755184001980,0.95793339,118810.0,118800.0,0.955562]
[1755184002380,1.65570951,118810.0,118800.0,0.955562]
[1755184002582,1.65570951,118810.0,118800.0,0.955362]
[1755184002783,1.70523042,118810.0,118800.0,0.955362]
[1755184002984,1.65570951,118810.0,118800.0,0.955362]
[1755184003496,0.3701313,118780.0,118770.0,0.13088]
[1755184003697,0.8945213,118780.0,118770.0,0.13088]
[1755184003890,0.72623,118780.0,118770.0,0.905]
[1755184004086,0.64209,118780.0,118770.0,0.905]
[1755184004287,0.72623,118780.0,118770.0,0.95228]
[1755184004784,0.72623,118780.0,118770.0,0.95328]
[1755184005186,0.73474756,118780.0,118770.0,0.95328]
[1755184005687,0.73474756,118780.0,118770.0,0.8224]
[1755184005890,0.73474756,118780.0,118770.0,0.8244]
[1755184006492,1.56252368,118780.0,118770.0,0.82448]
[1755184006682,1.43252368,118780.0,118770.0,0.958082]
[1755184006889,1.43172368,118780.0,118770.0,0.956082]
[1755184007197,0.73474756,118780.0,118770.0,1.039682]
[1755184007589,0.73474756,118780.0,118770.0,0.955082]
[1755184007790,1.43252368,118780.0,118770.0,0.954962]
[1755184008392,1.43272368,118780.0,118770.0,0.954962]
[1755184008996,1.53272368,118780.0,118770.0,0.954962]
[1755184009196,0.83654756,118780.0,118770.0,0.954962]
[1755184009399,1.53352368,118780.0,118770.0,0.954962]
[1755184009591,0.3654442,118760.0,118750.0,0.00011663]
[1755184009786,1.78402032,118760.0,118750.0,0.82175663]
[1755184010483,1.80963929,118760.0,118750.0,0.82175663]
[1755184010682,1.91963929,118760.0,118750.0,0.82175663]
[1755184010896,1.91963929,118760.0,118700.0,0.3608]
[1755184010897,0.0841897,118710.0,118700.0,0.3608]
[1755184011087,0.1312797,118710.0,118700.0,1.39339]
[1755184011489,0.77218763,118720.0,118700.0,1.4783868]
[1755184011685,0.48013012,118720.0,118710.0,0.21015]
[1755184011893,0.52722012,118720.0,118710.0,0.21015]
[1755184012593,0.52722012,118720.0,118710.0,0.90792612]
[1755184012594,0.38713109,118720.0,118710.0,0.90792612]
[1755184012793,0.51840369,118720.0,118710.0,0.343752]
[1755184012989,0.75260369,118720.0,118710.0,0.343752]
[1755184013189,0.58901369,118720.0,118710.0,0.348752]
[1755184014091,0.76134369,118720.0,118710.0,0.348752]
[1755184014297,0.76134369,118720.0,118710.0,0.301472]
[1755184014495,0.76134369,118720.0,118710.0,0.305472]
[1755184014800,0.76134369,118720.0,118710.0,0.353342]
[1755184015098,0.58901369,118720.0,118710.0,0.353342]
[1755184015298,0.76134369,118720.0,118710.0,0.353342]
[1755184016595,0.40054369,118720.0,118710.0,0.353342]
[1755184016999,0.76134369,118720.0,118710.0,0.353342]
[1755184018091,0.76134369,118720.0,118710.0,0.142602]
[1755184018292,0.76134369,118720.0,118710.0,0.308822]
[1755184018993,0.76134369,118720.0,118710.0,0.356692]
[1755184019199,0.51794369,118720.0,118710.0,0.356692]
[1755184019898,0.51794369,118720.0,118710.0,0.4408817]
[1755184020091,0.51794369,118720.0,118710.0,1.05366812]
[1755184020593,0.02733706,118720.0,118710.0,1.09294262]
[1755184020795,0.02733706,118720.0,118710.0,1.66783262]
[1755184020998,0.2991666,118730.0,118720.0,0.21409]
[1755184021298,0.56980183,118730.0,118720.0,1.03617]
[1755184021500,0.56980183,118730.0,118720.0,1.1203526]
[1755184021701,0.5783657,118730.0,118720.0,1.03617]
[1755184021895,0.9391657,118730.0,118720.0,0.21409]
[1755184022098,0.9391657,118730.0,118720.0,0.98814]
[1755184022403,0.9391657,118730.0,118720.0,0.99214]
[1755184022605,0.9391657,118730.0,118720.0,0.82592]
[1755184022805,0.9391657,118730.0,118720.0,0.004]
[1755184023103,0.9391657,118730.0,118720.0,0.82592]
[1755184023303,0.9391657,118730.0,118720.0,0.82892]
[1755184023505,0.9391657,118730.0,118720.0,0.99514]
[1755184024497,0.6116831,118730.0,118720.0,1.82416872]
[1755184024804,0.5650531,118730.0,118720.0,1.82416872]
[1755184025102,0.0358991,118730.0,118720.0,1.82416872]
[1755184025303,0.02733523,118730.0,118720.0,1.2607946]
[1755184025505,0.02733523,118730.0,118720.0,2.31857072]
[1755184026008,0.07396523,118730.0,118720.0,2.31857072]
[1755184026203,0.02733523,118730.0,118720.0,2.31857072]
[1755184026404,0.6132988,118750.0,118730.0,0.1683438]
[1755184026607,0.3608,118750.0,118740.0,1.81603452]
[1755184026815,0.68203204,118760.0,118750.0,0.2982513]
[1755184027110,0.68203204,118760.0,118750.0,0.91106612]
[1755184027416,0.72866204,118760.0,118750.0,0.21409]
[1755184027607,0.73733759,118760.0,118750.0,0.21409]
[1755184027811,0.37653759,118760.0,118750.0,0.21409]
[1755184027999,0.36786204,118760.0,118750.0,0.21409]
[1755184028203,0.06875614,118760.0,118750.0,0.99522772]
[1755184028403,0.50541929,118780.0,118760.0,0.0841485]
[1755184028404,0.46790909,118780.0,118760.0,0.0841485]
[1755184028712,0.19124619,118790.0,118780.0,0.2982303]
[1755184029016,0.14460529,118800.0,118790.0,0.3823473]
[1755184029306,0.22872679,118810.0,118800.0,0.0841262]
[1755184029501,0.22872679,118810.0,118800.0,1.27186612]
[1755184029502,0.31285259,118810.0,118800.0,1.27186612]
[1755184029705,0.2523735,118810.0,118800.0,1.35599232]
[1755184030009,0.2523735,118810.0,118800.0,1.43891512]
[1755184030010,0.0841191,118810.0,118800.0,1.43891512]
[1755184030212,0.21199066,118820.0,118810.0,0.2982091]
[1755184030415,0.21199066,118820.0,118810.0,2.17978522]
[1755184030629,0.15151157,118820.0,118810.0,2.17978522]
[1755184030911,0.22711044,118820.0,118810.0,1.39869]
[1755184031101,0.27374044,118820.0,118810.0,0.98982]
[1755184031713,0.51704044,118820.0,118810.0,2.48982]
[1755184031899,0.51704044,118820.0,118810.0,2.4919]
[1755184032106,1.57561656,118820.0,118810.0,1.5]
[1755184032416,0.80224157,118820.0,118810.0,2.4921]
[1755184032599,0.44144157,118820.0,118810.0,2.5762185]
[1755184032805,0.07039597,118820.0,118810.0,3.63399462]
[1755184033004,0.07239597,118820.0,118810.0,3.63399462]
[1755184033212,0.07239597,118820.0,118810.0,3.63852462]
[1755184033508,0.005,118820.0,118810.0,3.80765262]
[1755184033707,0.0001,118830.0,118820.0,0.2548615]
[1755184033909,0.6597154,118850.0,118840.0,0.0840973]
[1755184034102,0.19101994,118850.0,118840.0,1.37641367]
[1755184034299,0.1307234,118850.0,118840.0,1.29231637]
[1755184035006,0.3740234,118850.0,118840.0,0.92698637]
[1755184035206,0.1307234,118850.0,118840.0,2.12289449]
[1755184035414,0.1307234,118850.0,118840.0,2.20699179]
[1755184035709,0.1307234,118850.0,118840.0,1.76209449]
[1755184035902,0.1307234,118850.0,118840.0,1.75756449]
[1755184036105,0.1307234,118850.0,118840.0,1.76209449]
[1755184036306,0.1307234,118850.0,118840.0,2.20699319]
[1755184036515,0.1307234,118850.0,118840.0,1.42591837]
[1755184036715,0.1307234,118850.0,118840.0,2.11836449]
[1755184036915,0.1307234,118850.0,118840.0,1.06058837]
[1755184037118,0.19814947,118850.0,118840.0,1.84366319]
[1755184037311,0.19814947,118850.0,118840.0,2.20899319]
[1755184037612,0.19814947,118850.0,118840.0,2.20999319]
[1755184037813,0.19814947,118850.0,118840.0,1.4104607]
[1755184038007,0.44144947,118850.0,118840.0,1.131782]
[1755184038211,0.86325221,118850.0,118840.0,0.302822]
[1755184038412,0.88856057,118850.0,118840.0,1.142222]
[1755184038813,0.88936057,118850.0,118840.0,0.136602]
[1755184039025,1.52613395,118850.0,118840.0,0.976322]
[1755184039410,0.82915783,118850.0,118840.0,0.136602]
[1755184039619,1.52613395,118850.0,118840.0,0.976362]
[1755184040007,1.52613395,118850.0,118810.0,2.73054372]
[1755184040008,1.65613395,118850.0,118810.0,2.02702]
[1755184040214,0.374043,118820.0,118810.0,1.73451]
[1755184040514,0.374043,118820.0,118810.0,2.57399]
[1755184040515,0.76095136,118820.0,118810.0,2.57399]
[1755184040913,0.24506836,118820.0,118810.0,3.40295622]
[1755184041115,0.07273836,118820.0,118810.0,1.90295622]
[1755184041723,0.15685136,118820.0,118810.0,1.90495622]
[1755184042113,0.11022136,118820.0,118810.0,1.90495622]
[1755184042316,0.15685136,118820.0,118810.0,0.84148]
[1755184042515,0.40015136,118820.0,118810.0,1.07599]
[1755184042721,0.76175136,118820.0,118810.0,0.84272]
[1755184043026,0.76095136,118820.0,118810.0,0.84272]
[1755184043218,0.76095136,118820.0,118810.0,1.142542]
[1755184043613,1.45872748,118820.0,118810.0,0.976242]
[1755184044125,1.45872748,118820.0,118810.0,0.975242]
[1755184044520,1.45872748,118820.0,118810.0,0.975162]
[1755184044722,1.45872748,118820.0,118810.0,0.133602]
[1755184044919,1.4695298,118820.0,118810.0,0.972882]
[1755184045116,1.44342144,118820.0,118810.0,0.972882]
[1755184045316,0.7724912,118820.0,118810.0,0.972882]
[1755184045624,1.46946732,118820.0,118810.0,0.972882]
[1755184045926,1.47046732,118820.0,118810.0,0.972882]
[1755184046223,1.46966732,118820.0,118810.0,0.972882]
[1755184046409,0.7706912,118820.0,118810.0,0.972882]
[1755184046616,0.7716912,118820.0,118810.0,0.972882]
[1755184046816,0.7716912,118820.0,118810.0,1.209752]
[1755184047617,0.7027612,118820.0,118810.0,1.209752]
[1755184047819,0.7027612,118820.0,118810.0,1.259342]
[1755184048015,0.7027612,118820.0,118810.0,2.04043882]
[1755184048016,0.38884588,118820.0,118810.0,2.04043882]
[1755184048221,0.52132928,118820.0,118810.0,1.259342]
[1755184048421,0.76770928,118820.0,118810.0,1.259342]
[1755184048620,0.76770928,118820.0,118810.0,1.209752]
[1755184049126,0.76670928,118820.0,118810.0,1.209752]
[1755184049318,0.76670928,118820.0,118810.0,1.210752]
[1755184049525,0.77536514,118820.0,118810.0,1.210752]
[1755184050835,0.77436514,118820.0,118810.0,1.211752]
[1755184051529,0.77436514,118820.0,118810.0,0.975842]
[1755184051719,0.77436514,118820.0,118810.0,0.975242]
[1755184052424,0.77436514,118820.0,118810.0,1.024832]
[1755184052631,0.77436514,118820.0,118810.0,1.260702]
[1755184052826,0.77436514,118820.0,118810.0,1.211112]
[1755184053726,0.70235514,118820.0,118810.0,1.211112]
[1755184053931,0.77436514,118820.0,118810.0,1.259702]
[1755184055222,0.83456298,118820.0,118810.0,1.259702]
[1755184055417,0.76255298,118820.0,118810.0,1.259702]
[1755184055628,0.58818298,118820.0,118810.0,1.259702]
[1755184056031,0.38684588,118820.0,118810.0,2.04159852]
[1755184056231,0.38684588,118820.0,118810.0,2.04079852]
[1755184056532,0.11015918,118820.0,118810.0,2.40159852]
[1755184056728,0.06019784,118830.0,118810.0,2.57063482]
[1755184056923,0.06019784,118830.0,118820.0,0.86600032]
[1755184056924,0.0841063,118830.0,118820.0,0.86600032]
[1755184057123,0.0841063,118830.0,118820.0,0.95011362]
[1755184057336,0.0841063,118830.0,118820.0,0.78188702]
[1755184057630,0.0841063,118830.0,118820.0,0.26536]
[1755184057926,0.0841063,118830.0,118820.0,0.96233612]
[1755184058130,0.14530414,118830.0,118820.0,0.96233612]
[1755184058632,0.14630414,118830.0,118820.0,1.04644942]
[1755184058931,0.14630414,118830.0,118820.0,0.96233612]
[1755184059332,0.0861063,118830.0,118820.0,1.04724942]
[1755184059833,0.14647749,118830.0,118820.0,0.96313612]
[1755184060036,0.14647749,118830.0,118820.0,1.04724942]
[1755184060229,0.14647749,118830.0,118820.0,1.09673812]
[1755184060428,0.14647749,118830.0,118820.0,1.18085132]
[1755184060928,0.14547749,118830.0,118820.0,1.54165132]
[1755184061233,0.14547749,118830.0,118820.0,0.8476752]
[1755184061528,0.14547749,118830.0,118820.0,1.54465132]
[1755184061919,0.0841063,118830.0,118820.0,1.54665132]
[1755184062124,0.14447749,118830.0,118820.0,1.54665132]
[1755184062525,0.0841063,118830.0,118820.0,1.54665132]
[1755184062832,0.73459713,118850.0,118830.0,0.2523091]
[1755184062833,0.31077707,118850.0,118830.0,0.2523091]
[1755184063027,0.47897507,118850.0,118840.0,1.86223512]
[1755184063232,0.47897507,118850.0,118840.0,2.19350925]
[1755184063731,0.22667907,118850.0,118840.0,1.49653313]
[1755184064037,0.14258677,118850.0,118840.0,2.19430925]
[1755184064228,0.40596969,118870.0,118860.0,0.0840849]
[1755184064424,0.2165302,118870.0,118860.0,1.78962102]
[1755184064628,0.20007821,118870.0,118860.0,2.15042102]
[1755184064925,0.06762991,118870.0,118860.0,2.15042102]
[1755184065233,0.1681464,118880.0,118870.0,0.2481178]
[1755184065428,0.40592599,118890.0,118880.0,0.0840708]
[1755184065626,0.40592599,118890.0,118880.0,1.78303945]
[1755184065827,0.40592599,118890.0,118880.0,1.78203945]
[1755184066434,0.3005702,118890.0,118880.0,1.00099253]
[1755184066640,0.4749402,118890.0,118880.0,1.08406333]
[1755184066824,0.58029599,118890.0,118880.0,1.78103945]
[1755184067331,0.49622739,118890.0,118880.0,1.78103945]
[1755184067837,0.3908716,118890.0,118880.0,1.78103945]
[1755184068038,0.49622739,118890.0,118880.0,1.08406333]
[1755184068235,0.49822739,118890.0,118880.0,1.78103945]
[1755184068434,0.41415959,118890.0,118880.0,1.78103945]
[1755184068642,0.15572579,118890.0,118880.0,2.14183945]
[1755184068940,0.18126419,118890.0,118880.0,2.14183945]
[1755184069127,0.24991152,118890.0,118880.0,2.14183945]
[1755184069327,0.24791152,118890.0,118880.0,1.44686333]
[1755184069537,0.19954152,118890.0,118880.0,2.14383945]
[1755184070037,0.09418573,118890.0,118880.0,2.14383945]
[1755184070236,0.14255573,118890.0,118880.0,2.14383945]
[1755184070540,0.14255573,118890.0,118880.0,2.27744145]
[1755184070839,0.22661943,118890.0,118880.0,2.27744145]
[1755184071440,0.22661943,118890.0,118880.0,2.27792145]
[1755184071637,0.29862943,118890.0,118880.0,1.22014533]
[1755184071833,0.47299943,118890.0,118880.0,1.13607453]
[1755184072035,0.83379943,118890.0,118880.0,1.22002533]
[1755184072230,0.50335573,118890.0,118880.0,1.91700145]
[1755184072429,0.14255573,118890.0,118880.0,2.27780145]
[1755184072940,0.20279709,118890.0,118880.0,2.27780145]
[1755184073138,0.20279709,118890.0,118880.0,1.58082533]
[1755184073338,0.20279709,118890.0,118880.0,2.27780145]
[1755184073650,0.09418573,118890.0,118880.0,2.27860145]
[1755184073835,0.14493657,118890.0,118880.0,2.27780145]
[1755184074144,0.09418573,118890.0,118880.0,2.27860145]
[1755184075042,0.09418573,118890.0,118880.0,2.27780145]
[1755184075243,0.0255384,118890.0,118880.0,2.27860145]
[1755184075546,0.45987684,118910.0,118900.0,0.0840563]
[1755184075743,0.3005313,118910.0,118900.0,2.12261242]
[1755184075944,0.2164762,118910.0,118900.0,2.12261242]
[1755184076131,0.2164762,118910.0,118900.0,2.13113382]
[1755184076337,0.2164762,118910.0,118900.0,1.4256363]
[1755184076532,0.2164762,118910.0,118900.0,2.12261242]
[1755184076840,0.4624462,118910.0,118900.0,0.98326]
[1755184077042,0.4634462,118910.0,118900.0,0.98326]
[1755184077345,0.4634462,118910.0,118900.0,1.0673164]
[1755184077541,0.4644462,118910.0,118900.0,2.12509252]
[1755184077745,0.12565924,118910.0,118900.0,1.4281164]
[1755184078046,0.1344193,118910.0,118900.0,2.12509252]
[1755184078249,0.4117393,118910.0,118900.0,1.14031]
[1755184078550,0.64645854,118910.0,118900.0,0.22548]
[1755184078745,0.5675864,118900.0,118890.0,1.35296962]
[1755184078945,0.6277873,118900.0,118890.0,2.20244962]
[1755184079648,0.5437309,118900.0,118890.0,2.20244962]
[1755184080147,0.3818173,118900.0,118890.0,1.26890612]
[1755184080444,0.9283864,118900.0,118890.0,1.1678655]
[1755184080650,0.55881924,118900.0,118890.0,1.81744714]
[1755184080841,0.48353,118900.0,118890.0,1.81744714]
[1755184081544,0.48353,118900.0,118890.0,2.17824714]
[1755184081945,0.5675864,118900.0,118890.0,1.81744714]
[1755184082451,0.5675864,118900.0,118890.0,1.03640752]
[1755184082949,0.5675864,118900.0,118890.0,1.12047102]
[1755184083340,0.5675864,118900.0,118890.0,1.03640752]
[1755184083645,1.62616252,118900.0,118890.0,0.133602]
[1755184083857,1.60385852,118900.0,118890.0,0.76083955]
[1755184084046,1.73385852,118900.0,118890.0,0.71083955]
[1755184084244,1.60385852,118900.0,118890.0,0.71083955]
[1755184084442,0.9068824,118900.0,118890.0,0.71083955]
[1755184084649,1.0168824,118900.0,118890.0,0.71083955]
[1755184085150,1.0178824,118900.0,118890.0,0.71083955]
[1755184086148,1.0170824,118900.0,118890.0,0.84444155]
[1755184086640,0.90907732,118900.0,118890.0,0.84444155]
[1755184087249,0.91007732,118900.0,118890.0,0.84444155]
[1755184087446,0.93307734,118900.0,118890.0,0.84444155]
[1755184087650,1.12359734,118900.0,118890.0,0.84444155]
[1755184088352,1.06338642,118900.0,118890.0,0.84444155]
[1755184089045,0.95338642,118900.0,118890.0,0.90799155]
[1755184090252,0.95338642,118900.0,118890.0,1.70515767]
[1755184090949,0.38580002,118900.0,118890.0,1.79002107]
[1755184091253,0.46985642,118900.0,118890.0,1.70595767]
[1755184091548,0.38580002,118900.0,118890.0,1.79002107]
[1755184091752,0.02500002,118900.0,118890.0,1.79002107]
[1755184092056,0.02500002,118900.0,118890.0,2.15082107]
[1755184093552,0.02400002,118900.0,118890.0,2.15082107]
[1755184094151,0.02400002,118900.0,118890.0,1.36978155]
[1755184094348,0.15409642,118900.0,118890.0,2.06595767]
[1755184094649,0.15409642,118900.0,118890.0,1.149182]
[1755184094650,0.91949642,118900.0,118890.0,1.149182]
[1755184094853,0.95138642,118900.0,118890.0,1.149182]
[1755184095060,0.10705642,118900.0,118890.0,1.84615812]
[1755184095241,0.10705642,118900.0,118890.0,1.93022152]
[1755184095446,0.02300002,118900.0,118890.0,2.29102152]
[1755184095644,0.02300002,118900.0,118890.0,2.29182152]
[1755184095856,0.10705642,118900.0,118890.0,2.29182152]
[1755184097454,0.15409642,118900.0,118890.0,1.149182]
[1755184097759,0.95138642,118900.0,118890.0,1.102692]
[1755184098144,1.64916254,118900.0,118890.0,0.986042]
[1755184098349,1.58864254,118900.0,118890.0,0.133602]
[1755184098544,1.64885346,118900.0,118890.0,0.991962]
[1755184098747,0.95187734,118900.0,118890.0,0.991962]
[1755184098947,1.64885346,118900.0,118890.0,0.991962]
[1755184099650,0.95287734,118900.0,118890.0,0.991962]
[1755184100658,0.95387734,118900.0,118890.0,0.991962]
[1755184100949,1.59064254,118900.0,118890.0,0.991962]
[1755184101455,1.85085346,118900.0,118860.0,1.16376]
[1755184101656,0.7386854,118870.0,118860.0,1.16376]
[1755184101862,0.76168542,118870.0,118860.0,2.02216]